[Event "UZB-ch Men Final 2019"]
[Site "Tashkent"]
[Date "2019.07.04"]
[Round "3.5"]
[White "Vokhidov, Shamsiddin"]
[Black "Dzhumaev, Marat"]
[Result "0-1"]
[ECO "C55"]
[WhiteElo "2515"]
[BlackElo "2439"]
[Annotator "ChessBase"]
[PlyCount "124"]
[EventDate "2019.07.02"]
[EventType "tourn"]
[EventCountry "UZB"]
[SourceTitle "playchess.com"]
[Source "ChessBase"]
[SourceQuality "1"]
[TimeControl "5400+30"]

1. e4 {[%emt 0:00:00]} e5 {[%emt 0:05:24]} 2. Nf3 {[%emt 0:00:00]} Nc6 {[%emt 0:00:07]} 3. Bc4 {[%emt 0:00:00]} Nf6 {[%emt 0:00:39]} 4. d3 {[%emt 0:00:08]} Be7 {[%emt 0:00:53]} 5. O-O {[%emt 0:00:55]} O-O {[%emt 0:00:10]} 6. Re1 {[%emt 0:00:07]} a6 {[%emt 0:01:27]} 7. a4 {[%emt 0:15:22]} d6 {[%emt 0:02:36]} 8. c3 {[%emt 0:00:52]} h6 {[%emt 0:05:49]} 9. h3 {[%emt 0:14:04]} Nh7 {[%emt 0:01:39]} 10. Be3 {[%emt 0:05:54]} Bg5 {[%emt 0:03:30]} 11. Nxg5 {[%emt 0:03:10]} Nxg5 {[%emt 0:00:17]} 12. Qh5 {[%emt 0:06:11]} Qf6 {[%emt 0:02:00]} 13. Nd2 {[%emt 0:00:49]} Kh7 {[%emt 0:07:36]} 14. h4 {[%emt 0:05:17]} Ne6 {[%emt 0:00:11]} 15. g3 {[%emt 0:01:29]} Qg6 {[%emt 0:00:35]} 16. Qxg6+ {[%emt 0:01:47]} fxg6 {[%emt 0:04:49]} 17. b4 {[%emt 0:02:21]} Bd7 {[%emt 0:00:41]} 18. Kg2 {[%emt 0:03:24]} b6 {[%emt 0:05:56]} 19. Rf1 {[%emt 0:04:55]} Rf6 {[%emt 0:01:12]} 20. f3 {[%emt 0:01:27]} Rff8 {[%emt 0:10:46]} 21. f4 {[%emt 0:03:35]} Rf6 {[%emt 0:11:12]} 22. Rf2 {[%emt 0:08:01]} Raf8 {[%emt 0:01:33]} 23. Raf1 {[%emt 0:01:35]} exf4 {[%emt 0:09:55]} 24. gxf4 {[%emt 0:01:55]} Ne7 {[%emt 0:00:10]} 25. Bb3 {[%emt 0:03:02]} Bc6 {[%emt 0:03:16]} 26. Kh2 {[%emt 0:01:26]} d5 {[%emt 0:00:10]} 27. Bc2 {[%emt 0:02:02]} Kg8 {[%emt 0:03:16]} 28. Kg3 {[%emt 0:04:09]} Bb7 {[%emt 0:00:18]} 29. Nb3 {[%emt 0:00:42]} Nc8 {[%emt 0:03:33]} 30. Kh2 {[%emt 0:02:26]} R6f7 {[%emt 0:06:20]} 31. h5 {[%emt 0:01:17]} gxh5 {[%emt 0:01:43]} 32. f5 {[%emt 0:02:07]} Ng5 {[%emt 0:00:11]} 33. Nd4 {[%emt 0:01:12]} c5 {[%emt 0:04:27]} 34. bxc5 {[%emt 0:00:02]} bxc5 {[%emt 0:00:07]} 35. Nf3 {[%emt 0:01:49]} Nxf3+ {[%emt 0:00:17]} 36. Rxf3 {[%emt 0:00:01]} c4 {[%emt 0:03:20]} 37. Rg3 {[%emt 0:00:03]} Re8 {[%emt 0:01:16]} 38. Bd1 {[%emt 0:01:40]} h4 {[%emt 0:00:25]} 39. Rgg1 {[%emt 0:00:20]} dxe4 {[%emt 0:00:35]} 40. Bh5 {[%emt 0:00:08]} exd3 {[%emt 0:00:25]} 41. Bxf7+ {[%emt 0:00:40]} Kxf7 {[%emt 0:00:08]} 42. Bd4 {[%emt 0:00:02]} Rg8 {[%emt 0:01:25]} 43. Rb1 {[%emt 0:03:44]} Bf3 {[%emt 0:00:22]} 44. Rbf1 {[%emt 0:01:12]} Be2 {[%emt 0:00:18]} 45. Rb1 {[%emt 0:00:13]} Ne7 {[%emt 0:00:23]} 46. Rb7 {[%emt 0:00:25]} d2 {[%emt 0:00:09]} 47. Bc5 {[%emt 0:00:47]} Re8 {[%emt 0:00:50]} 48. Bd4 {[%emt 0:00:09]} d1=Q {[%emt 0:00:50]} 49. Rxg7+ {[%emt 0:00:16]} Kf8 {[%emt 0:00:05]} 50. Rh7 {[%emt 0:00:20]} Qxd4 {[%emt 0:01:09]} 51. cxd4 {[%emt 0:00:01]} Bd3 {[%emt 0:00:19]} 52. Rxh6 {[%emt 0:01:01]} Kg7 {[%emt 0:00:32]} 53. Rxa6 {[%emt 0:01:05]} Bxf5 {[%emt 0:00:09]} 54. d5 {[%emt 0:00:29]} Bc8 {[%emt 0:00:46]} 55. Ra8 {[%emt 0:00:15]} Bxb7 {[%emt 0:00:18]} 56. Rxe8 {[%emt 0:00:01]} Nxd5 {[%emt 0:00:11]} 57. Re4 {[%emt 0:01:33]} c3 {[%emt 0:00:25]} 58. Rxh4 {[%emt 0:00:19]} Ba6 {[%emt 0:01:09]} 59. Kg3 {[%emt 0:00:16]} c2 {[%emt 0:00:09]} 60. Rh1 {[%emt 0:00:01]} Nc3 {[%emt 0:00:17]} 61. Re1 {[%emt 0:01:11]} Kf6 {[%emt 0:00:29]} 62. Rh1 {[%emt 0:00:20]} Nd1 0-1

[Event "UZB-ch Men Final 2019"]
[Site "Tashkent"]
[Date "2019.07.04"]
[Round "3.6"]
[White "Abdusattorov, Nodirbek"]
[Black "Sabirov, Asilbek"]
[Result "1-0"]
[ECO "D56"]
[WhiteElo "2598"]
[BlackElo "2147"]
[Annotator "ChessBase"]
[PlyCount "61"]
[EventDate "2019.07.02"]
[EventType "tourn"]
[EventCountry "UZB"]
[SourceTitle "playchess.com"]
[Source "ChessBase"]
[SourceQuality "1"]
[TimeControl "5400+30"]

1. d4 {[%emt 0:00:00]} Nf6 {[%emt 0:00:45]} 2. c4 {[%emt 0:00:05]} e6 {[%emt 0:00:06]} 3. Nf3 {[%emt 0:00:27]} d5 {[%emt 0:00:06]} 4. Nc3 {[%emt 0:00:32]} Be7 {[%emt 0:01:41]} 5. Bg5 {[%emt 0:00:47]} h6 {[%emt 0:00:13]} 6. Bh4 {[%emt 0:00:32]} O-O {[%emt 0:00:25]} 7. e3 {[%emt 0:00:12]} Nbd7 {[%emt 0:01:07]} 8. cxd5 {[%emt 0:01:47]} exd5 {[%emt 0:00:23]} 9. Bd3 {[%emt 0:01:04]} c6 {[%emt 0:01:01]} 10. Qc2 {[%emt 0:02:19]} Re8 {[%emt 0:00:36]} 11. O-O {[%emt 0:02:54]} b6 {[%emt 0:05:29]} 12. Bg3 {[%emt 0:04:29]} Bb7 {[%emt 0:05:44]} 13. h3 {[%emt 0:01:10]} Bf8 {[%emt 0:03:16]} 14. Rad1 {[%emt 0:07:11]} Rc8 {[%emt 0:01:46]} 15. Bh4 {[%emt 0:05:02]} Bd6 {[%emt 0:04:56]} 16. Bf5 {[%emt 0:02:11]} g5 {[%emt 0:04:15]} 17. Bg3 {[%emt 0:00:31]} Bxg3 {[%emt 0:00:47]} 18. fxg3 {[%emt 0:00:05]} Qe7 {[%emt 0:03:29]} 19. Rde1 {[%emt 0:06:33]} Rcd8 {[%emt 0:09:18]} 20. h4 {[%emt 0:04:10]} Kg7 {[%emt 0:05:29]} 21. hxg5 {[%emt 0:01:42]} hxg5 {[%emt 0:00:02]} 22. Nxg5 {[%emt 0:00:38]} Rh8 {[%emt 0:00:58]} 23. e4 {[%emt 0:01:31]} Nh5 {[%emt 0:01:38]} 24. Nxf7 {[%emt 0:07:57]} Qxf7 {[%emt 0:00:43]} 25. Qd2 {[%emt 0:00:25]} Qf6 {[%emt 0:09:42]} 26. Bh7 {[%emt 0:00:31]} Kxh7 {[%emt 0:03:42]} 27. Rxf6 {[%emt 0:00:10]} Nhxf6 {[%emt 0:00:28]} 28. e5 {[%emt 0:00:35]} Nh5 {[%emt 0:01:48]} 29. Qg5 {[%emt 0:02:22]} Ng7 {[%emt 0:00:15]} 30. e6 {[%emt 0:01:21]} Rhe8 {[%emt 0:07:56]} 31. Rf1 {[%emt 0:01:31]} 1-0

[Event "UZB-ch Men Final 2019"]
[Site "Tashkent"]
[Date "2019.07.05"]
[Round "4.1"]
[White "Dzhumaev, Marat"]
[Black "Abdusattorov, Nodirbek"]
[Result "1/2-1/2"]
[ECO "E06"]
[WhiteElo "2439"]
[BlackElo "2598"]
[Annotator "ChessBase"]
[PlyCount "77"]
[EventDate "2019.07.02"]
[EventType "tourn"]
[EventCountry "UZB"]
[SourceTitle "playchess.com"]
[Source "ChessBase"]
[SourceQuality "1"]
[TimeControl "5400+30"]

1. c4 {[%emt 0:12:14]} Nf6 {[%emt 0:00:00]} 2. d4 {[%emt 0:02:05]} e6 {[%emt 0:00:20]} 3. g3 {[%emt 0:00:34]} d5 {[%emt 0:01:31]} 4. Nf3 {[%emt 0:00:58]} Be7 {[%emt 0:00:10]} 5. Bg2 {[%emt 0:00:11]} O-O {[%emt 0:00:07]} 6. O-O {[%emt 0:00:09]} dxc4 {[%emt 0:00:03]} 7. Qc2 {[%emt 0:01:23]} a6 {[%emt 0:00:10]} 8. a4 {[%emt 0:01:47]} Bd7 {[%emt 0:00:36]} 9. Qxc4 {[%emt 0:00:45]} Bc6 {[%emt 0:00:10]} 10. Bg5 {[%emt 0:02:18]} Bd5 {[%emt 0:00:52]} 11. Qd3 {[%emt 0:03:03]} c5 {[%emt 0:08:03]} 12. dxc5 {[%emt 0:20:45]} Nbd7 {[%emt 0:09:47]} 13. Nc3 {[%emt 0:01:46]} Nxc5 {[%emt 0:02:05]} 14. Qe3 {[%emt 0:00:12]} Qa5 {[%emt 0:03:32]} 15. Rab1 {[%emt 0:26:23]} Qb4 {[%emt 0:10:50]} 16. Rfd1 {[%emt 0:00:11]} Bxf3 {[%emt 0:01:22]} 17. Rd4 {[%emt 0:00:12]} Qb3 {[%emt 0:06:02]} 18. Bxf3 {[%emt 0:00:52]} Rac8 {[%emt 0:05:04]} 19. a5 {[%emt 0:04:13]} Qc2 {[%emt 0:06:13]} 20. Rdd1 {[%emt 0:08:25]} h6 {[%emt 0:02:31]} 21. Bf4 {[%emt 0:02:01]} Rfd8 {[%emt 0:02:27]} 22. Rxd8+ {[%emt 0:04:49]} Rxd8 {[%emt 0:00:50]} 23. Be5 {[%emt 0:01:03]} Nfd7 {[%emt 0:08:49]} 24. Rd1 {[%emt 0:00:21]} Bg5 {[%emt 0:00:51]} 25. Bf4 {[%emt 0:01:11]} Bxf4 {[%emt 0:00:12]} 26. Qxf4 {[%emt 0:01:07]} Qxb2 {[%emt 0:01:01]} 27. Ne4 {[%emt 0:01:07]} Rf8 {[%emt 0:03:39]} 28. Nd6 {[%emt 0:00:50]} Ne5 {[%emt 0:03:01]} 29. Bh5 {[%emt 0:00:30]} g6 {[%emt 0:00:19]} 30. Qxh6 {[%emt 0:02:16]} Rd8 {[%emt 0:04:32]} 31. Kg2 {[%emt 0:00:31]} Nc6 {[%emt 0:03:10]} 32. Nc4 {[%emt 0:01:06]} Qf6 {[%emt 0:05:51]} 33. Rxd8+ {[%emt 0:00:17]} Qxd8 {[%emt 0:00:20]} 34. Bxg6 {[%emt 0:00:46]} fxg6 {[%emt 0:00:04]} 35. Qxg6+ {[%emt 0:00:04]} Kf8 {[%emt 0:00:04]} 36. Qh6+ {[%emt 0:00:26]} Kg8 {[%emt 0:00:05]} 37. Qg6+ {[%emt 0:00:36]} Kf8 {[%emt 0:00:05]} 38. Qh6+ {[%emt 0:00:07]} Kg8 {[%emt 0:00:18]} 39. Qg6+ {[%emt 0:00:07]} 1/2-1/2

[Event "UZB-ch Men Final 2019"]
[Site "Tashkent"]
[Date "2019.07.05"]
[Round "4.2"]
[White "Abdisalimov, Abdimalik"]
[Black "Vokhidov, Shamsiddin"]
[Result "0-1"]
[ECO "B24"]
[WhiteElo "2391"]
[BlackElo "2515"]
[Annotator "ChessBase"]
[PlyCount "116"]
[EventDate "2019.07.02"]
[EventType "tourn"]
[EventCountry "UZB"]
[SourceTitle "playchess.com"]
[Source "ChessBase"]
[SourceQuality "1"]
[TimeControl "5400+30"]

1. e4 {[%emt 0:00:00]} c5 {[%emt 0:00:00]} 2. Nc3 {[%emt 0:00:02]} Nc6 {[%emt 0:00:52]} 3. Bb5 {[%emt 0:00:07]} Nd4 {[%emt 0:00:11]} 4. Bc4 {[%emt 0:00:05]} a6 {[%emt 0:00:07]} 5. Nge2 {[%emt 0:01:14]} b5 {[%emt 0:01:41]} 6. Bd5 {[%emt 0:01:40]} Rb8 {[%emt 0:00:16]} 7. Nxd4 {[%emt 0:00:04]} cxd4 {[%emt 0:00:05]} 8. Ne2 {[%emt 0:00:03]} Nf6 {[%emt 0:00:29]} 9. Nxd4 {[%emt 0:02:33]} Qb6 {[%emt 0:11:19]} 10. Ne2 {[%emt 0:03:46]} Nxd5 {[%emt 0:05:30]} 11. exd5 {[%emt 0:00:05]} Bb7 {[%emt 0:00:17]} 12. Nf4 {[%emt 0:02:49]} Qd4 {[%emt 0:08:00]} 13. d3 {[%emt 0:02:29]} g5 {[%emt 0:00:58]} 14. c3 {[%emt 0:03:28]} Qe5+ {[%emt 0:00:59]} 15. Qe2 {[%emt 0:00:01]} Qxe2+ {[%emt 0:01:19]} 16. Nxe2 {[%emt 0:00:01]} Bxd5 {[%emt 0:00:02]} 17. Bxg5 {[%emt 0:00:08]} Bxg2 {[%emt 0:06:38]} 18. Rg1 {[%emt 0:00:07]} Bc6 {[%emt 0:03:12]} 19. Kd2 {[%emt 0:00:03]} f6 {[%emt 0:02:17]} 20. Be3 {[%emt 0:00:15]} Kf7 {[%emt 0:03:19]} 21. Nd4 {[%emt 0:00:22]} Bd5 {[%emt 0:00:36]} 22. Nf5 {[%emt 0:03:46]} h5 {[%emt 0:05:15]} 23. Nh4 {[%emt 0:12:44]} Rh7 {[%emt 0:00:24]} 24. Ng6 {[%emt 0:00:07]} Bg7 {[%emt 0:00:08]} 25. Nf4 {[%emt 0:00:00]} Bc6 {[%emt 0:00:59]} 26. b4 {[%emt 0:00:54]} h4 {[%emt 0:02:47]} 27. Ne2 {[%emt 0:01:01]} d6 {[%emt 0:03:14]} 28. Nd4 {[%emt 0:01:09]} Bd7 {[%emt 0:00:28]} 29. f4 {[%emt 0:00:09]} Rh5 {[%emt 0:04:52]} 30. Raf1 {[%emt 0:01:07]} e6 {[%emt 0:03:01]} 31. a3 {[%emt 0:04:39]} Rc8 {[%emt 0:02:25]} 32. Rf2 {[%emt 0:01:57]} Bf8 {[%emt 0:04:43]} 33. Rfg2 {[%emt 0:02:19]} Rh7 {[%emt 0:00:58]} 34. Re2 {[%emt 0:02:00]} Rg7 {[%emt 0:02:05]} 35. Rc1 {[%emt 0:02:23]} Rg4 {[%emt 0:01:34]} 36. Rf2 {[%emt 0:00:15]} Bh6 {[%emt 0:02:57]} 37. Ke2 {[%emt 0:02:24]} Re8 {[%emt 0:02:00]} 38. Kd2 {[%emt 0:01:08]} Reg8 {[%emt 0:02:04]} 39. Ke2 {[%emt 0:10:36]} Rg2 {[%emt 0:01:12]} 40. Rcf1 {[%emt 0:00:00]} Bf8 {[%emt 0:02:23]} 41. Rxg2 {[%emt 0:00:42]} Rxg2+ {[%emt 0:00:01]} 42. Rf2 {[%emt 0:00:00]} Rg4 {[%emt 0:02:33]} 43. h3 {[%emt 0:01:32]} Rg3 {[%emt 0:01:38]} 44. Rh2 {[%emt 0:02:47]} e5 {[%emt 0:01:51]} 45. Nf3 {[%emt 0:08:05]} Bh6 {[%emt 0:01:12]} 46. Bf2 {[%emt 0:00:53]} Rxf3 {[%emt 0:00:25]} 47. Kxf3 {[%emt 0:01:30]} Bxf4 {[%emt 0:00:02]} 48. Kg2 {[%emt 0:00:11]} f5 {[%emt 0:05:22]} 49. c4 {[%emt 0:17:28]} Bxh2 {[%emt 0:02:08]} 50. Kxh2 {[%emt 0:00:01]} f4 {[%emt 0:00:20]} 51. c5 {[%emt 0:01:22]} d5 {[%emt 0:03:48]} 52. Bxh4 {[%emt 0:00:54]} d4 {[%emt 0:00:52]} 53. Bd8 {[%emt 0:08:08]} Bf5 {[%emt 0:00:25]} 54. Bc7 {[%emt 0:00:51]} Ke6 {[%emt 0:00:20]} 55. h4 {[%emt 0:00:00]} Bxd3 {[%emt 0:00:10]} 56. h5 {[%emt 0:00:03]} Be4 {[%emt 0:02:55]} 57. Kg1 {[%emt 0:00:15]} Bf3 {[%emt 0:01:06]} 58. h6 {[%emt 0:00:05]} d3 {[%emt 0:00:21]} 0-1

[Event "UZB-ch Men Final 2019"]
[Site "Tashkent"]
[Date "2019.07.05"]
[Round "4.3"]
[White "Rakhimov, Rakhmatjon"]
[Black "Yakubboev, Nodirbek"]
[Result "1/2-1/2"]
[ECO "A85"]
[WhiteElo "2107"]
[BlackElo "2575"]
[Annotator "ChessBase"]
[PlyCount "133"]
[EventDate "2019.07.02"]
[EventType "tourn"]
[EventCountry "UZB"]
[SourceTitle "playchess.com"]
[Source "ChessBase"]
[SourceQuality "1"]
[TimeControl "5400+30"]

1. d4 {[%emt 0:00:00]} f5 {[%emt 0:08:17]} 2. c4 {[%emt 0:01:40]} Nf6 {[%emt 0:00:15]} 3. Nc3 {[%emt 0:00:21]} d6 {[%emt 0:00:09]} 4. g3 {[%emt 0:01:40]} g6 {[%emt 0:02:03]} 5. Bg2 {[%emt 0:00:38]} Bg7 {[%emt 0:00:17]} 6. Nf3 {[%emt 0:02:14]} O-O {[%emt 0:00:43]} 7. O-O {[%emt 0:00:46]} Qe8 {[%emt 0:01:45]} 8. Nd5 {[%emt 0:03:13]} Nxd5 {[%emt 0:01:49]} 9. cxd5 {[%emt 0:00:02]} Nd7 {[%emt 0:01:53]} 10. Qb3 {[%emt 0:06:52]} Nb6 {[%emt 0:01:01]} 11. Rd1 {[%emt 0:08:13]} Bd7 {[%emt 0:01:53]} 12. Qc2 {[%emt 0:05:44]} Nxd5 {[%emt 0:04:54]} 13. Ng5 {[%emt 0:02:11]} c6 {[%emt 0:00:47]} 14. Qb3 {[%emt 0:02:28]} h6 {[%emt 0:22:00]} 15. Nh3 {[%emt 0:00:33]} b6 {[%emt 0:01:41]} 16. Bxd5+ {[%emt 0:04:08]} cxd5 {[%emt 0:01:11]} 17. Qxd5+ {[%emt 0:00:52]} Kh8 {[%emt 0:08:49]} 18. Nf4 {[%emt 0:00:55]} g5 {[%emt 0:01:03]} 19. Ng2 {[%emt 0:07:54]} Bc6 {[%emt 0:01:29]} 20. Qe6 {[%emt 0:00:33]} Rf6 {[%emt 0:00:35]} 21. Qe3 {[%emt 0:02:42]} e5 {[%emt 0:00:20]} 22. d5 {[%emt 0:05:41]} f4 {[%emt 0:01:46]} 23. Qe4 {[%emt 0:03:59]} Bd7 {[%emt 0:00:38]} 24. f3 {[%emt 0:00:55]} Qh5 {[%emt 0:02:02]} 25. Bd2 {[%emt 0:02:22]} Qh3 {[%emt 0:13:49]} 26. Be1 {[%emt 0:02:56]} Raf8 {[%emt 0:02:18]} 27. Rac1 {[%emt 0:02:48]} Bf5 {[%emt 0:03:05]} 28. Qa4 {[%emt 0:02:58]} e4 {[%emt 0:01:30]} 29. Rc7 {[%emt 0:16:03]} exf3 {[%emt 0:08:18]} 30. exf3 {[%emt 0:00:04]} fxg3 {[%emt 0:02:56]} 31. hxg3 {[%emt 0:00:03]} Bg6 {[%emt 0:02:31]} 32. Bc3 {[%emt 0:01:51]} R6f7 {[%emt 0:01:18]} 33. Bxg7+ {[%emt 0:06:18]} Kxg7 {[%emt 0:00:01]} 34. Qd4+ {[%emt 0:00:20]} Kh7 {[%emt 0:00:07]} 35. Rdc1 {[%emt 0:01:20]} Qxg3 {[%emt 0:01:25]} 36. Rxf7+ {[%emt 0:01:08]} Rxf7 {[%emt 0:00:50]} 37. Rc8 {[%emt 0:00:08]} Qe5 {[%emt 0:00:57]} 38. Qxe5 {[%emt 0:01:05]} dxe5 {[%emt 0:00:02]} 39. Ne3 {[%emt 0:00:58]} Rd7 {[%emt 0:01:02]} 40. Rc6 {[%emt 0:00:28]} Kg7 {[%emt 0:00:53]} 41. Re6 {[%emt 0:01:08]} Bf7 {[%emt 0:00:40]} 42. Rxe5 {[%emt 0:00:43]} Kf6 {[%emt 0:00:44]} 43. Rf5+ {[%emt 0:02:47]} Ke7 {[%emt 0:00:25]} 44. a3 {[%emt 0:00:24]} Rd6 {[%emt 0:00:52]} 45. Kf2 {[%emt 0:00:05]} Rf6 {[%emt 0:00:46]} 46. Kg3 {[%emt 0:01:25]} Rd6 {[%emt 0:00:25]} 47. f4 {[%emt 0:00:31]} gxf4+ {[%emt 0:00:11]} 48. Kxf4 {[%emt 0:00:01]} Rg6 {[%emt 0:00:48]} 49. Ke5 {[%emt 0:00:44]} Be8 {[%emt 0:00:17]} 50. Nc4 {[%emt 0:00:42]} Bd7 {[%emt 0:00:29]} 51. d6+ {[%emt 0:00:23]} Ke8 {[%emt 0:00:13]} 52. Rf4 {[%emt 0:00:43]} b5 {[%emt 0:00:36]} 53. Nd2 {[%emt 0:00:18]} Rg5+ {[%emt 0:00:30]} 54. Kf6 {[%emt 0:00:40]} Rd5 {[%emt 0:00:45]} 55. Ne4 {[%emt 0:00:04]} h5 {[%emt 0:00:40]} 56. Kg6 {[%emt 0:00:35]} Re5 {[%emt 0:00:18]} 57. Kg7 {[%emt 0:00:43]} Kd8 {[%emt 0:00:47]} 58. Nf6 {[%emt 0:01:15]} Bg4 {[%emt 0:00:27]} 59. a4 {[%emt 0:00:35]} Re6 {[%emt 0:00:26]} 60. Rd4 {[%emt 0:00:04]} bxa4 {[%emt 0:00:30]} 61. Kf7 {[%emt 0:00:00]} Re2 {[%emt 0:00:22]} 62. Rb4 {[%emt 0:00:01]} Be6+ {[%emt 0:00:23]} 63. Kg6 {[%emt 0:00:13]} Kc8 {[%emt 0:00:27]} 64. Kxh5 {[%emt 0:00:53]} Rd2 {[%emt 0:00:16]} 65. Ne4 {[%emt 0:00:02]} Rd5+ {[%emt 0:00:06]} 66. Kh4 {[%emt 0:00:56]} Bf5 {[%emt 0:00:34]} 67. Rxa4 {[%emt 0:00:25]} 1/2-1/2

[Event "UZB-ch Men Final 2019"]
[Site "Tashkent"]
[Date "2019.07.05"]
[Round "4.4"]
[White "Saydaliev, Saidakbar"]
[Black "Nigmatov, Ortik"]
[Result "1-0"]
[ECO "B81"]
[WhiteElo "2384"]
[BlackElo "2488"]
[Annotator "ChessBase"]
[PlyCount "55"]
[EventDate "2019.07.02"]
[EventType "tourn"]
[EventCountry "UZB"]
[SourceTitle "playchess.com"]
[Source "ChessBase"]
[SourceQuality "1"]
[TimeControl "5400+30"]

1. e4 {[%emt 0:00:00]} c5 {[%emt 0:00:00]} 2. Nf3 {[%emt 0:00:00]} d6 {[%emt 0:00:04]} 3. d4 {[%emt 0:00:03]} Nf6 {[%emt 0:00:08]} 4. Nc3 {[%emt 0:00:11]} cxd4 {[%emt 0:00:05]} 5. Nxd4 {[%emt 0:00:12]} e6 {[%emt 0:02:27]} 6. g4 {[%emt 0:00:07]} h6 {[%emt 0:02:11]} 7. h4 {[%emt 0:00:07]} h5 {[%emt 0:00:50]} 8. gxh5 {[%emt 0:05:21]} Rxh5 {[%emt 0:03:20]} 9. Bg5 {[%emt 0:02:34]} Rh8 {[%emt 0:00:06]} 10. Qd2 {[%emt 0:06:15]} a6 {[%emt 0:00:10]} 11. O-O-O {[%emt 0:00:44]} Nbd7 {[%emt 0:04:00]} 12. f4 {[%emt 0:07:48]} Qc7 {[%emt 0:08:44]} 13. Bh3 {[%emt 0:13:33]} Nb6 {[%emt 0:03:58]} 14. e5 {[%emt 0:06:21]} dxe5 {[%emt 0:35:36]} 15. fxe5 {[%emt 0:13:07]} Nfd5 {[%emt 0:01:40]} 16. Nxd5 {[%emt 0:01:26]} Nxd5 {[%emt 0:00:06]} 17. Bg2 {[%emt 0:06:09]} Bc5 {[%emt 0:07:43]} 18. Nb3 {[%emt 0:14:31]} Bb6 {[%emt 0:03:02]} 19. Kb1 {[%emt 0:04:09]} Bd7 {[%emt 0:02:14]} 20. h5 {[%emt 0:01:52]} Rc8 {[%emt 0:05:41]} 21. c3 {[%emt 0:08:53]} Bc6 {[%emt 0:11:06]} 22. c4 {[%emt 0:02:33]} Nb4 {[%emt 0:00:51]} 23. Bxc6+ {[%emt 0:01:09]} Nxc6 {[%emt 0:01:01]} 24. h6 {[%emt 0:00:46]} gxh6 {[%emt 0:01:43]} 25. Bf6 {[%emt 0:00:01]} Rg8 {[%emt 0:02:11]} 26. c5 {[%emt 0:01:41]} Ba7 {[%emt 0:00:23]} 27. Qxh6 {[%emt 0:01:17]} Nxe5 {[%emt 0:01:30]} 28. Qg7 {[%emt 0:00:27]} 1-0

[Event "UZB-ch Men Final 2019"]
[Site "Tashkent"]
[Date "2019.07.05"]
[Round "4.5"]
[White "Karimov, Ibragim"]
[Black "Khoroshev, Nikita"]
[Result "1-0"]
[ECO "A85"]
[WhiteElo "2211"]
[BlackElo "2414"]
[Annotator "NA"]
[PlyCount "73"]
[EventDate "2019.07.02"]
[EventType "tourn"]
[EventCountry "UZB"]
[SourceTitle "playchess.com"]
[Source "ChessBase"]
[SourceQuality "1"]
[TimeControl "5400+30"]

1. d4 {[%emt 0:00:00]} f5 {[%emt 0:00:47]} 2. c4 {[%emt 0:01:35]} Nf6 {[%emt 0:00:46]} 3. Nc3 {[%emt 0:01:04]} g6 {[%emt 0:00:23]} 4. h4 {[%emt 0:05:44]} Bg7 {[%emt 0:00:13]} 5. Bg5 {[%emt 0:12:44]} c5 {[%emt 0:00:36]} 6. d5 {[%emt 0:08:01]} Qa5 {[%emt 0:00:26]} 7. Qd2 {[%emt 0:01:47]} h6 {[%emt 0:01:00]} 8. Bf4 {[%emt 0:12:29]} d6 {[%emt 0:00:28]} 9. e3 {[%emt 0:02:57]} Na6 {[%emt 0:00:55]} 10. Rc1 {[%emt 0:03:18]} b5 {[%emt 0:04:48]} 11. cxb5 {[%emt 0:07:51]} Nc7 {[%emt 0:00:03]} 12. Bc4 {[%emt 0:00:44]} a6 {[%emt 0:00:59]} 13. b6 {[%emt 0:10:28]} Qxb6 {[%emt 0:01:51]} 14. a3 {[%emt 0:01:27]} Qa5 {[%emt 0:04:27]} 15. Nge2 {[%emt 0:11:53]} Bb7 {[%emt 0:00:04]} 16. Rd1 {[%emt 0:00:14]} Nb5 {[%emt 0:03:03]} 17. O-O {[%emt 0:00:30]} O-O {[%emt 0:04:57]} 18. e4 {[%emt 0:01:39]} Nd4 {[%emt 0:00:10]} 19. Bxh6 {[%emt 0:10:55]} Nxe4 {[%emt 0:00:16]} 20. Nxe4 {[%emt 0:00:21]} Qxd2 {[%emt 0:00:07]} 21. Bxd2 {[%emt 0:00:04]} fxe4 {[%emt 0:00:44]} 22. Bg5 {[%emt 0:01:39]} e6 {[%emt 0:06:24]} 23. Nc3 {[%emt 0:01:03]} Rf5 {[%emt 0:00:07]} 24. Nxe4 {[%emt 0:00:42]} exd5 {[%emt 0:00:55]} 25. Nxd6 {[%emt 0:00:03]} dxc4 {[%emt 0:00:07]} 26. Nxb7 {[%emt 0:00:05]} Ne2+ {[%emt 0:02:38]} 27. Kh1 {[%emt 0:01:08]} Raf8 {[%emt 0:00:01]} 28. g4 {[%emt 0:01:20]} Rf3 {[%emt 0:01:29]} 29. Kg2 {[%emt 0:00:11]} Bd4 {[%emt 0:00:02]} 30. Be3 {[%emt 0:00:34]} c3 {[%emt 0:00:15]} 31. bxc3 {[%emt 0:00:32]} Nxc3 {[%emt 0:00:02]} 32. Bxd4 {[%emt 0:00:13]} cxd4 {[%emt 0:01:59]} 33. Rxd4 {[%emt 0:00:03]} Nb5 {[%emt 0:00:03]} 34. Ra4 {[%emt 0:00:38]} Nxa3 {[%emt 0:00:49]} 35. Rxa6 {[%emt 0:00:18]} Kh7 {[%emt 0:00:01]} 36. Nc5 {[%emt 0:00:29]} Nc4 {[%emt 0:00:07]} 37. Ne6 {[%emt 0:00:17]} 1-0